[Event "Early-Titled-Tuesday-Blitz-October-10-2023"]
[Site "Chess.com"]
[Date "2023.10.10"]
[Round "10"]
[White "Orest_Vovk"]
[Black "GeorgiosSouleidis"]
[Result "1-0"]
[WhiteElo "2540"]
[BlackElo "2632"]
[TimeControl "180+1"]
[EndTime "9:54:51 PDT"]
[Termination "Orest_Vovk won by resignation"]

1. h4 {[%clk 0:03:00.9]} 1... d5 {[%clk 0:02:59.4]} 2. h5 {[%clk 0:02:59.1]}
2... e5 {[%clk 0:02:58.9]} 3. h6 {[%clk 0:02:59]} 3... Nxh6 {[%clk 0:02:57.6]}
4. d4 {[%clk 0:02:58]} 4... e4 {[%clk 0:02:47.4]} 5. Bxh6 {[%clk 0:02:56.7]}
5... gxh6 {[%clk 0:02:48.3]} 6. e3 {[%clk 0:02:57.1]} 6... Bg7 {[%clk
0:02:37.7]} 7. c4 {[%clk 0:02:52.5]} 7... c6 {[%clk 0:02:34.7]} 8. Qb3 {[%clk
0:02:50.7]} 8... O-O {[%clk 0:02:32.5]} 9. Nc3 {[%clk 0:02:49.8]} 9... dxc4
{[%clk 0:02:20.3]} 10. Bxc4 {[%clk 0:02:48.6]} 10... Qe7 {[%clk 0:02:18.8]} 11.
Nh3 {[%clk 0:02:42.3]} 11... b5 {[%clk 0:02:14.8]} 12. Be2 {[%clk 0:02:41.2]}
12... a5 {[%clk 0:02:11.4]} 13. Nf4 {[%clk 0:02:39.9]} 13... a4 {[%clk
0:02:05.4]} 14. Qc2 {[%clk 0:02:39.3]} 14... Re8 {[%clk 0:01:59.5]} 15. a3
{[%clk 0:02:07.3]} 15... Nd7 {[%clk 0:01:32.4]} 16. Rh5 {[%clk 0:01:54.1]} 16...
Nb6 {[%clk 0:01:03.9]} 17. Rd1 {[%clk 0:01:37.7]} 17... b4 {[%clk 0:01:00.2]}
18. axb4 {[%clk 0:01:36.8]} 18... Qxb4 {[%clk 0:01:00.9]} 19. Kf1 {[%clk
0:01:34.2]} 19... Qb3 {[%clk 0:00:50.8]} 20. Qxb3 {[%clk 0:01:16.3]} 20... axb3
{[%clk 0:00:51.7]} 21. Rc5 {[%clk 0:01:16.2]} 21... Bd7 {[%clk 0:00:45.1]} 22.
Bc4 {[%clk 0:00:45.4]} 22... Nxc4 {[%clk 0:00:37.1]} 23. Rxc4 {[%clk 0:00:46.3]}
23... Ra5 {[%clk 0:00:30.2]} 24. Rb4 {[%clk 0:00:40.8]} 24... Rea8 {[%clk
0:00:21]} 25. Rxb3 {[%clk 0:00:40]} 25... Ra1 {[%clk 0:00:20.8]} 26. Rxa1 {[%clk
0:00:37.4]} 26... Rxa1+ {[%clk 0:00:21.7]} 27. Ke2 {[%clk 0:00:37.7]} 27... Bg4+
{[%clk 0:00:21.8]} 28. f3 {[%clk 0:00:29.6]} 28... exf3+ {[%clk 0:00:22]} 29.
gxf3 {[%clk 0:00:29.9]} 29... Bd7 {[%clk 0:00:21.7]} 30. Rb8+ {[%clk 0:00:29.2]}
30... Bf8 {[%clk 0:00:21.9]} 31. Nh5 {[%clk 0:00:22.2]} 31... Be6 {[%clk
0:00:09.8]} 32. Ne4 {[%clk 0:00:16.4]} 32... f5 {[%clk 0:00:10.3]} 33. Nc5
{[%clk 0:00:07.4]} 33... Bc4+ {[%clk 0:00:09.2]} 34. Kd2 {[%clk 0:00:07.7]}
34... Kf7 {[%clk 0:00:09.6]} 35. Rb7+ {[%clk 0:00:07.4]} 35... Kg6 {[%clk
0:00:06.9]} 36. Nf4+ {[%clk 0:00:07.6]} 36... Kg5 {[%clk 0:00:07.5]} 37. Nce6+
{[%clk 0:00:05]} 37... Bxe6 {[%clk 0:00:07.7]} 38. Nxe6+ {[%clk 0:00:05.9]}
38... Kh4 {[%clk 0:00:08.2]} 39. Nxf8 {[%clk 0:00:06.2]} 39... Kg3 {[%clk
0:00:08.9]} 40. Rxh7 {[%clk 0:00:05.6]} 40... Kxf3 {[%clk 0:00:09.4]} 41. Rxh6
{[%clk 0:00:05.9]} 41... Ra2 {[%clk 0:00:08.5]} 42. Rxc6 {[%clk 0:00:05.7]}
42... Rxb2+ {[%clk 0:00:08.5]} 43. Rc2 {[%clk 0:00:05.6]} 43... Rb8 {[%clk
0:00:07.2]} 44. Ne6 {[%clk 0:00:05]} 44... Rh8 {[%clk 0:00:07.9]} 45. Nf4 {[%clk
0:00:04]} 45... Ke4 {[%clk 0:00:07.1]} 46. Rc5 {[%clk 0:00:03]} 46... Rh2+
{[%clk 0:00:07.1]} 47. Ne2 {[%clk 0:00:03.3]} 47... Rh5 {[%clk 0:00:03.2]} 48.
Re5+ {[%clk 0:00:03.3]} 48... Kf3 {[%clk 0:00:03.7]} 49. d5 {[%clk 0:00:03.7]}
49... Kg4 {[%clk 0:00:01.7]} 50. d6 {[%clk 0:00:03.5]} 50... Rh6 {[%clk
0:00:01.7]} 51. Rd5 {[%clk 0:00:03.6]} 51... Rh8 {[%clk 0:00:02.1]} 52. d7
{[%clk 0:00:03.9]} 52... Rd8 {[%clk 0:00:02.3]} 53. Nf4 {[%clk 0:00:04.3]} 53...
Kg5 {[%clk 0:00:02.9]} 54. Ne6+ {[%clk 0:00:04.5]} 1-0

[Event "Early-Titled-Tuesday-Blitz-October-10-2023"]
[Site "Chess.com"]
[Date "2023.10.10"]
[Round "10"]
[White "mapleaff"]
[Black "Mr_Lion22"]
[Result "0-1"]
[WhiteElo "2381"]
[BlackElo "2505"]
[TimeControl "180+1"]
[EndTime "9:54:53 PDT"]
[Termination "Mr_Lion22 won by resignation"]

1. e4 {[%clk 0:02:59]} 1... c5 {[%clk 0:02:39.8]} 2. Nf3 {[%clk 0:02:57.7]} 2...
d6 {[%clk 0:02:39.9]} 3. Bb5+ {[%clk 0:02:53.8]} 3... Nd7 {[%clk 0:02:39.1]} 4.
O-O {[%clk 0:02:53.5]} 4... a6 {[%clk 0:02:39.1]} 5. Bxd7+ {[%clk 0:02:51.9]}
5... Bxd7 {[%clk 0:02:40]} 6. Re1 {[%clk 0:02:51.9]} 6... Nf6 {[%clk 0:02:39.5]}
7. Nc3 {[%clk 0:02:51.1]} 7... g6 {[%clk 0:02:38.9]} 8. d4 {[%clk 0:02:51.4]}
8... cxd4 {[%clk 0:02:38.2]} 9. Nxd4 {[%clk 0:02:51.6]} 9... Bg7 {[%clk
0:02:38.4]} 10. Bg5 {[%clk 0:02:50.7]} 10... O-O {[%clk 0:02:37.2]} 11. Qf3
{[%clk 0:02:49.4]} 11... Rc8 {[%clk 0:02:33.8]} 12. Rad1 {[%clk 0:02:48.3]}
12... h6 {[%clk 0:02:25.7]} 13. Bxf6 {[%clk 0:02:40.7]} 13... Bxf6 {[%clk
0:02:26.6]} 14. Nd5 {[%clk 0:02:30.9]} 14... Bg7 {[%clk 0:02:25.2]} 15. c3
{[%clk 0:02:30.2]} 15... e6 {[%clk 0:02:19.1]} 16. Ne3 {[%clk 0:02:20.9]} 16...
Qb6 {[%clk 0:02:17.7]} 17. Nb3 {[%clk 0:02:20.6]} 17... a5 {[%clk 0:02:16.1]}
18. e5 {[%clk 0:02:03.2]} 18... Bxe5 {[%clk 0:01:46.2]} 19. Ng4 {[%clk
0:02:00.2]} 19... Bg7 {[%clk 0:01:29.2]} 20. Qf4 {[%clk 0:01:59.9]} 20... e5
{[%clk 0:01:22.1]} 21. Nf6+ {[%clk 0:01:53]} 21... Bxf6 {[%clk 0:01:21]} 22.
Qxf6 {[%clk 0:01:53.9]} 22... Be6 {[%clk 0:01:20.7]} 23. h4 {[%clk 0:01:46.8]}
23... h5 {[%clk 0:00:58.4]} 24. Nd2 {[%clk 0:01:06.2]} 24... Qxb2 {[%clk
0:00:24.4]} 25. Ne4 {[%clk 0:01:05.2]} 25... d5 {[%clk 0:00:12.9]} 26. Ng5
{[%clk 0:01:01.5]} 26... Rc6 {[%clk 0:00:13.3]} 27. Qxe5 {[%clk 0:00:33]} 27...
Qxc3 {[%clk 0:00:09.9]} 28. Qf4 {[%clk 0:00:25.7]} 28... Bf5 {[%clk 0:00:08.5]}
29. Re3 {[%clk 0:00:19.8]} 29... Qc4 {[%clk 0:00:07.7]} 30. Rd4 {[%clk
0:00:16.3]} 30... Qc1+ {[%clk 0:00:07.4]} 31. Kh2 {[%clk 0:00:16.8]} 31... Rc4
{[%clk 0:00:08]} 32. Nf3 {[%clk 0:00:14.7]} 32... Rxd4 {[%clk 0:00:07.8]} 33.
Nxd4 {[%clk 0:00:15.6]} 33... Qc4 {[%clk 0:00:07.7]} 34. Kg3 {[%clk 0:00:13]}
34... Be4 {[%clk 0:00:07.5]} 35. f3 {[%clk 0:00:11.1]} 35... Qxd4 {[%clk
0:00:07.4]} 36. fxe4 {[%clk 0:00:10.7]} 36... dxe4 {[%clk 0:00:08]} 37. Rxe4
{[%clk 0:00:11.4]} 37... Qc3+ {[%clk 0:00:07.6]} 38. Re3 {[%clk 0:00:11.4]}
38... Qb2 {[%clk 0:00:07.8]} 39. Qf2 {[%clk 0:00:09.6]} 39... Qxf2+ {[%clk
0:00:07.1]} 40. Kxf2 {[%clk 0:00:10.5]} 40... Rb8 {[%clk 0:00:07.1]} 41. Rb3
{[%clk 0:00:10.6]} 41... b5 {[%clk 0:00:07.5]} 42. Ke3 {[%clk 0:00:11.1]} 42...
b4 {[%clk 0:00:08.1]} 43. a3 {[%clk 0:00:10.7]} 43... Kg7 {[%clk 0:00:05.9]} 44.
Kd4 {[%clk 0:00:10.9]} 44... f5 {[%clk 0:00:04.9]} 45. Kc5 {[%clk 0:00:10.5]}
45... Kf6 {[%clk 0:00:05.1]} 46. Kc6 {[%clk 0:00:10.1]} 46... Rc8+ {[%clk
0:00:05.1]} 47. Kd7 {[%clk 0:00:10.1]} 47... Rc3 {[%clk 0:00:05.4]} 48. Rb1
{[%clk 0:00:06.1]} 48... Rxa3 {[%clk 0:00:05.4]} 0-1

[Event "Early-Titled-Tuesday-Blitz-October-10-2023"]
[Site "Chess.com"]
[Date "2023.10.10"]
[Round "10"]
[White "UK_23"]
[Black "lluiss"]
[Result "0-1"]
[WhiteElo "2352"]
[BlackElo "2204"]
[TimeControl "180+1"]
[EndTime "9:54:54 PDT"]
[Termination "lluiss won by resignation"]

1. e4 {[%clk 0:03:00.9]} 1... c5 {[%clk 0:02:59.4]} 2. Nf3 {[%clk 0:03:00.8]}
2... d6 {[%clk 0:02:59.5]} 3. Bb5+ {[%clk 0:03:00.4]} 3... Nd7 {[%clk
0:02:58.8]} 4. O-O {[%clk 0:03:00.3]} 4... a6 {[%clk 0:02:56.3]} 5. Be2 {[%clk
0:02:48.1]} 5... Ngf6 {[%clk 0:02:55]} 6. Nc3 {[%clk 0:02:36.6]} 6... g6 {[%clk
0:02:53.8]} 7. d4 {[%clk 0:02:34.7]} 7... cxd4 {[%clk 0:02:53.3]} 8. Nxd4 {[%clk
0:02:35.6]} 8... Bg7 {[%clk 0:02:53.5]} 9. Be3 {[%clk 0:02:35.1]} 9... O-O
{[%clk 0:02:53.1]} 10. Qd2 {[%clk 0:02:34.7]} 10... Re8 {[%clk 0:02:46.3]} 11.
Bh6 {[%clk 0:02:32.8]} 11... Bh8 {[%clk 0:02:46.3]} 12. Rad1 {[%clk 0:02:31.1]}
12... Ne5 {[%clk 0:02:45.8]} 13. f3 {[%clk 0:02:30.7]} 13... Bd7 {[%clk
0:02:36.5]} 14. Kh1 {[%clk 0:02:29.8]} 14... Nc6 {[%clk 0:02:36.2]} 15. Nb3
{[%clk 0:02:28.3]} 15... Rc8 {[%clk 0:02:30.7]} 16. Rfe1 {[%clk 0:02:26.4]}
16... b5 {[%clk 0:02:28.1]} 17. a3 {[%clk 0:02:25.5]} 17... Ne5 {[%clk
0:02:27.1]} 18. Bf1 {[%clk 0:02:08.5]} 18... Nc4 {[%clk 0:02:25.9]} 19. Bxc4
{[%clk 0:02:07.8]} 19... Rxc4 {[%clk 0:02:26.3]} 20. Qe3 {[%clk 0:01:44.2]}
20... Qc7 {[%clk 0:02:21.7]} 21. Rd2 {[%clk 0:01:35.3]} 21... Be6 {[%clk
0:02:09.4]} 22. Red1 {[%clk 0:01:34.9]} 22... Rc8 {[%clk 0:02:08.7]} 23. Bf4
{[%clk 0:01:30.5]} 23... Nd7 {[%clk 0:02:08.2]} 24. Nd4 {[%clk 0:01:23.4]} 24...
Nc5 {[%clk 0:01:29.3]} 25. Bg5 {[%clk 0:01:12.3]} 25... Qd7 {[%clk 0:01:00.3]}
26. Qf4 {[%clk 0:00:45.7]} 26... Rxc3 {[%clk 0:00:57.6]} 27. bxc3 {[%clk
0:00:45.4]} 27... Na4 {[%clk 0:00:56.9]} 28. Nxe6 {[%clk 0:00:39.6]} 28... Qxe6
{[%clk 0:00:56.8]} 29. Qh4 {[%clk 0:00:37]} 29... Nxc3 {[%clk 0:00:54]} 30. Rf1
{[%clk 0:00:31.2]} 30... Rc7 {[%clk 0:00:50]} 31. h3 {[%clk 0:00:27.6]} 31... a5
{[%clk 0:00:45.7]} 32. Be3 {[%clk 0:00:23.5]} 32... Bf6 {[%clk 0:00:37.2]} 33.
Qh6 {[%clk 0:00:22.1]} 33... Rc4 {[%clk 0:00:32.7]} 34. Bg5 {[%clk 0:00:17.8]}
34... Be5 {[%clk 0:00:28.3]} 35. Qh4 {[%clk 0:00:17.2]} 35... f6 {[%clk
0:00:24.5]} 36. Bf4 {[%clk 0:00:16.3]} 36... Bd4 {[%clk 0:00:16.8]} 37. Qe1
{[%clk 0:00:12.4]} 37... b4 {[%clk 0:00:14.5]} 38. axb4 {[%clk 0:00:12.1]} 38...
axb4 {[%clk 0:00:13.6]} 39. Be3 {[%clk 0:00:12.7]} 39... Be5 {[%clk 0:00:12.7]}
40. Qa1 {[%clk 0:00:11.1]} 40... Kf7 {[%clk 0:00:10.7]} 41. Qa8 {[%clk
0:00:11.2]} 41... Nb5 {[%clk 0:00:08.8]} 42. f4 {[%clk 0:00:11.2]} 42... Bc3
{[%clk 0:00:07.9]} 43. Re2 {[%clk 0:00:11]} 43... Na3 {[%clk 0:00:07.7]} 44. f5
{[%clk 0:00:10.7]} 44... Qe5 {[%clk 0:00:07.4]} 45. fxg6+ {[%clk 0:00:10.9]}
45... hxg6 {[%clk 0:00:07.7]} 46. Qh8 {[%clk 0:00:11.2]} 46... Ke6 {[%clk
0:00:07.6]} 47. Qg8+ {[%clk 0:00:11.5]} 47... Kd7 {[%clk 0:00:07.5]} 48. Qxg6
{[%clk 0:00:11.5]} 48... Qe6 {[%clk 0:00:07.4]} 49. Qg4 {[%clk 0:00:12]} 49...
Qxg4 {[%clk 0:00:07]} 50. hxg4 {[%clk 0:00:12.9]} 50... Be5 {[%clk 0:00:07]} 51.
Rf5 {[%clk 0:00:13.1]} 51... Rxc2 {[%clk 0:00:06.6]} 52. Rxc2 {[%clk 0:00:12.8]}
52... Nxc2 {[%clk 0:00:07.5]} 53. Bd2 {[%clk 0:00:13.3]} 53... b3 {[%clk
0:00:07.6]} 54. Rf1 {[%clk 0:00:13.8]} 54... b2 {[%clk 0:00:07.2]} 55. Rb1
{[%clk 0:00:14.5]} 55... Na3 {[%clk 0:00:07]} 56. Rf1 {[%clk 0:00:14.2]} 56...
b1=Q {[%clk 0:00:05.8]} 57. Rxb1 {[%clk 0:00:14.8]} 57... Nxb1 {[%clk
0:00:06.4]} 58. g5 {[%clk 0:00:15.7]} 58... Nxd2 {[%clk 0:00:06.3]} 59. g6
{[%clk 0:00:16.1]} 59... Ke8 {[%clk 0:00:06.4]} 60. Kg1 {[%clk 0:00:15.1]} 60...
Kf8 {[%clk 0:00:07]} 61. g4 {[%clk 0:00:16]} 61... Kg7 {[%clk 0:00:07.6]} 62.
Kg2 {[%clk 0:00:16.9]} 62... Kxg6 {[%clk 0:00:08.2]} 0-1

[Event "Early-Titled-Tuesday-Blitz-October-10-2023"]
[Site "Chess.com"]
[Date "2023.10.10"]
[Round "10"]
[White "Herzog2012"]
[Black "Byniolus"]
[Result "1-0"]
[WhiteElo "2535"]
[BlackElo "2716"]
[TimeControl "180+1"]
[EndTime "9:54:58 PDT"]
[Termination "Herzog2012 won by resignation"]

1. e4 {[%clk 0:03:00.9]} 1... d6 {[%clk 0:03:00.3]} 2. d4 {[%clk 0:03:00.4]}
2... Nf6 {[%clk 0:03:01.2]} 3. Nc3 {[%clk 0:03:00.3]} 3... c6 {[%clk 0:03:01.8]}
4. a4 {[%clk 0:02:59.4]} 4... a5 {[%clk 0:03:01.2]} 5. f4 {[%clk 0:02:57.3]}
5... Qb6 {[%clk 0:02:59.2]} 6. Nf3 {[%clk 0:02:51.4]} 6... Bg4 {[%clk
0:02:58.8]} 7. Be2 {[%clk 0:02:49.7]} 7... Bxf3 {[%clk 0:02:58.6]} 8. Bxf3
{[%clk 0:02:49.5]} 8... e5 {[%clk 0:02:59.5]} 9. Ne2 {[%clk 0:02:42.4]} 9...
Nbd7 {[%clk 0:02:57.9]} 10. b3 {[%clk 0:02:38.1]} 10... Be7 {[%clk 0:02:56.5]}
11. Ba3 {[%clk 0:02:27.9]} 11... d5 {[%clk 0:02:22.8]} 12. Bxe7 {[%clk
0:01:57.1]} 12... dxe4 {[%clk 0:02:23.2]} 13. Bxf6 {[%clk 0:01:41.9]} 13... Nxf6
{[%clk 0:02:14.9]} 14. fxe5 {[%clk 0:01:16.5]} 14... exf3 {[%clk 0:02:15.1]} 15.
exf6 {[%clk 0:01:14.4]} 15... fxe2 {[%clk 0:02:04]} 16. Qxe2+ {[%clk 0:01:15.3]}
16... Kf8 {[%clk 0:01:57.7]} 17. Qe7+ {[%clk 0:01:00.5]} 17... Kg8 {[%clk
0:01:57.3]} 18. O-O-O {[%clk 0:00:59.4]} 18... Qb4 {[%clk 0:01:46.3]} 19. Qxb4
{[%clk 0:00:48.1]} 19... axb4 {[%clk 0:01:47.2]} 20. Rhf1 {[%clk 0:00:40.7]}
20... Ra5 {[%clk 0:01:37.5]} 21. Kd2 {[%clk 0:00:33.7]} 21... h5 {[%clk
0:01:33.6]} 22. Kd3 {[%clk 0:00:28.9]} 22... Rg5 {[%clk 0:01:30.8]} 23. g3
{[%clk 0:00:23.9]} 23... h4 {[%clk 0:01:31.4]} 24. fxg7 {[%clk 0:00:20.6]} 24...
Kxg7 {[%clk 0:01:31.1]} 25. gxh4 {[%clk 0:00:19.1]} 25... Rxh4 {[%clk 0:01:32]}
26. Rg1 {[%clk 0:00:19]} 26... Kg6 {[%clk 0:01:21.5]} 27. Rxg5+ {[%clk
0:00:17.3]} 27... Kxg5 {[%clk 0:01:22.4]} 28. Rd2 {[%clk 0:00:11.9]} 28... b5
{[%clk 0:01:20.1]} 29. a5 {[%clk 0:00:11.7]} 29... f5 {[%clk 0:01:15.5]} 30. a6
{[%clk 0:00:10.7]} 30... Rh3+ {[%clk 0:01:12.3]} 31. Ke2 {[%clk 0:00:07.3]}
31... Rxh2+ {[%clk 0:01:13.2]} 32. Ke3 {[%clk 0:00:05.2]} 32... Rh3+ {[%clk
0:01:11.7]} 33. Ke2 {[%clk 0:00:04.3]} 33... Rh8 {[%clk 0:01:01.1]} 34. Rd1
{[%clk 0:00:04.1]} 34... Kf4 {[%clk 0:00:59.4]} 35. a7 {[%clk 0:00:03.5]} 35...
Ra8 {[%clk 0:00:58.8]} 36. Ra1 {[%clk 0:00:03.1]} 36... Ke4 {[%clk 0:00:59.7]}
37. Kd2 {[%clk 0:00:02.7]} 37... Kxd4 {[%clk 0:00:59.9]} 38. Ra6 {[%clk
0:00:02.9]} 38... Kd5 {[%clk 0:00:55.5]} 39. Ke3 {[%clk 0:00:03]} 39... Kd6
{[%clk 0:00:54.4]} 40. Kf4 {[%clk 0:00:03.1]} 40... Kc7 {[%clk 0:00:55.3]} 41.
Kxf5 {[%clk 0:00:03.4]} 41... Kb7 {[%clk 0:00:56.2]} 42. Ra1 {[%clk 0:00:03.1]}
42... Rxa7 {[%clk 0:00:57.1]} 43. Rxa7+ {[%clk 0:00:03.3]} 43... Kxa7 {[%clk
0:00:58]} 44. Ke5 {[%clk 0:00:03.9]} 44... Kb7 {[%clk 0:00:52.7]} 45. Kd6 {[%clk
0:00:02]} 45... Kb6 {[%clk 0:00:52.9]} 46. Kd7 {[%clk 0:00:02.3]} 46... Kc5
{[%clk 0:00:49.5]} 47. Kc7 {[%clk 0:00:02.5]} 47... Kd5 {[%clk 0:00:44]} 48. Kb6
{[%clk 0:00:02.4]} 48... Kd6 {[%clk 0:00:44.9]} 49. Kb7 {[%clk 0:00:02.3]} 49...
c5 {[%clk 0:00:13.3]} 50. Kb6 {[%clk 0:00:03.2]} 50... Kd5 {[%clk 0:00:13.8]}
51. Kxb5 {[%clk 0:00:03.5]} 51... Kd4 {[%clk 0:00:14.4]} 52. Kc6 {[%clk
0:00:03.9]} 52... c4 {[%clk 0:00:14.1]} 53. Kb5 {[%clk 0:00:04]} 53... Kc3
{[%clk 0:00:06.5]} 54. bxc4 {[%clk 0:00:04.2]} 54... Kxc2 {[%clk 0:00:07]} 55.
Kxb4 {[%clk 0:00:04.3]} 1-0

[Event "Early-Titled-Tuesday-Blitz-October-10-2023"]
[Site "Chess.com"]
[Date "2023.10.10"]
[Round "10"]
[White "chessfatbear"]
[Black "ArtemDyachuk"]
[Result "1-0"]
[WhiteElo "2817"]
[BlackElo "2682"]
[TimeControl "180+1"]
[EndTime "9:54:59 PDT"]
[Termination "chessfatbear won on time"]

1. e4 {[%clk 0:02:55.6]} 1... c5 {[%clk 0:02:57.3]} 2. Nf3 {[%clk 0:02:55.4]}
2... d6 {[%clk 0:02:56.7]} 3. d4 {[%clk 0:02:55.8]} 3... cxd4 {[%clk 0:02:56.6]}
4. Nxd4 {[%clk 0:02:56.7]} 4... Nf6 {[%clk 0:02:53.9]} 5. Nc3 {[%clk 0:02:57.1]}
5... Nc6 {[%clk 0:02:51.5]} 6. Bg5 {[%clk 0:02:55.3]} 6... e6 {[%clk 0:02:50.6]}
7. Qd2 {[%clk 0:02:55.4]} 7... a6 {[%clk 0:02:46.7]} 8. O-O-O {[%clk 0:02:54.9]}
8... Bd7 {[%clk 0:02:46.8]} 9. f4 {[%clk 0:02:53.7]} 9... Be7 {[%clk 0:02:46.3]}
10. Nf3 {[%clk 0:02:53.2]} 10... b5 {[%clk 0:02:41.8]} 11. Bxf6 {[%clk
0:02:48.2]} 11... gxf6 {[%clk 0:02:39.3]} 12. f5 {[%clk 0:02:47.8]} 12... Qb6
{[%clk 0:02:37.7]} 13. Kb1 {[%clk 0:02:46.9]} 13... O-O-O {[%clk 0:02:31.9]} 14.
g3 {[%clk 0:02:46.5]} 14... Kb8 {[%clk 0:02:17.6]} 15. fxe6 {[%clk 0:02:46.2]}
15... fxe6 {[%clk 0:02:16.9]} 16. Bh3 {[%clk 0:02:46.2]} 16... Rc8 {[%clk
0:01:58]} 17. Nd5 {[%clk 0:02:45.4]} 17... Qd8 {[%clk 0:01:38.2]} 18. Nxe7
{[%clk 0:02:40.9]} 18... Qxe7 {[%clk 0:01:39.1]} 19. Qxd6+ {[%clk 0:02:39]}
19... Qxd6 {[%clk 0:01:40]} 20. Rxd6 {[%clk 0:02:39.3]} 20... Kc7 {[%clk
0:01:40.9]} 21. Rhd1 {[%clk 0:02:39.4]} 21... Rhd8 {[%clk 0:01:37.3]} 22. c3
{[%clk 0:02:33.9]} 22... Na5 {[%clk 0:01:13.1]} 23. Rxa6 {[%clk 0:02:26.3]}
23... Bc6 {[%clk 0:01:11.7]} 24. Rxd8 {[%clk 0:02:15.9]} 24... Rxd8 {[%clk
0:01:12.6]} 25. Nd4 {[%clk 0:02:13.3]} 25... e5 {[%clk 0:00:33.8]} 26. Ne6+
{[%clk 0:01:45.4]} 26... Kb7 {[%clk 0:00:33.2]} 27. Nc5+ {[%clk 0:01:36.3]}
27... Kc7 {[%clk 0:00:32.1]} 28. Rxa5 {[%clk 0:01:36.4]} 28... Rd1+ {[%clk
0:00:29.3]} 29. Kc2 {[%clk 0:01:36.2]} 29... Rh1 {[%clk 0:00:29.6]} 30. Bf5
{[%clk 0:01:32.2]} 30... Rxh2+ {[%clk 0:00:29]} 31. Kd3 {[%clk 0:01:24.7]} 31...
Rxb2 {[%clk 0:00:25]} 32. Ra6 {[%clk 0:01:07.8]} 32... h5 {[%clk 0:00:21.1]} 33.
Be6 {[%clk 0:00:55.5]} 33... Rg2 {[%clk 0:00:15.7]} 34. Bd5 {[%clk 0:00:54.7]}
34... Rxg3+ {[%clk 0:00:15.8]} 35. Kd2 {[%clk 0:00:54]} 35... Be8 {[%clk
0:00:15.2]} 36. Rxf6 {[%clk 0:00:51.7]} 36... h4 {[%clk 0:00:15.5]} 37. Rh6
{[%clk 0:00:48]} 37... h3 {[%clk 0:00:15.5]} 38. Nd3 {[%clk 0:00:46]} 38... Rg2+
{[%clk 0:00:11.3]} 39. Ke3 {[%clk 0:00:44.7]} 39... h2 {[%clk 0:00:11.2]} 40.
Nf2 {[%clk 0:00:43.1]} 40... Rg3+ {[%clk 0:00:03.4]} 41. Ke2 {[%clk 0:00:39.7]}
41... Rg2 {[%clk 0:00:02.6]} 42. Kf3 {[%clk 0:00:38.3]} 42... Rg1 {[%clk
0:00:03.1]} 43. Rxh2 {[%clk 0:00:38]} 43... Rc1 {[%clk 0:00:04]} 44. Nd3 {[%clk
0:00:33.8]} 44... Rxc3 {[%clk 0:00:03.4]} 45. Ke3 {[%clk 0:00:33.8]} 45... b4
{[%clk 0:00:03.3]} 46. Kd2 {[%clk 0:00:29.4]} 46... Bb5 {[%clk 0:00:02.5]} 47.
Nxb4 {[%clk 0:00:28.8]} 47... Rg3 {[%clk 0:00:03.4]} 48. Rh6 {[%clk 0:00:26]}
48... Rg2+ {[%clk 0:00:03]} 49. Ke3 {[%clk 0:00:23.8]} 49... Rb2 {[%clk
0:00:02.6]} 50. Nd3 {[%clk 0:00:22.5]} 50... Rg2 {[%clk 0:00:02.1]} 51. Nxe5
{[%clk 0:00:22.5]} 51... Rg3+ {[%clk 0:00:01.7]} 52. Kd4 {[%clk 0:00:22.9]}
52... Rg1 {[%clk 0:00:02.6]} 53. Kc5 {[%clk 0:00:21.7]} 53... Be8 {[%clk
0:00:01.3]} 54. Rh7+ {[%clk 0:00:22]} 54... Kb8 {[%clk 0:00:01.3]} 55. Rb7+
{[%clk 0:00:20.3]} 55... Kc8 {[%clk 0:00:01.2]} 56. Nc4 {[%clk 0:00:19.1]} 1-0

[Event "Early-Titled-Tuesday-Blitz-October-10-2023"]
[Site "Chess.com"]
[Date "2023.10.10"]
[Round "10"]
[White "C_K_G"]
[Black "NowInChess"]
[Result "1-0"]
[WhiteElo "1966"]
[BlackElo "2212"]
[TimeControl "180+1"]
[EndTime "9:54:59 PDT"]
[Termination "C_K_G won on time"]

1. e4 {[%clk 0:02:55.6]} 1... e6 {[%clk 0:03:00.1]} 2. Nf3 {[%clk 0:02:54.8]}
2... d5 {[%clk 0:03:00.5]} 3. Nc3 {[%clk 0:02:54.6]} 3... Nf6 {[%clk 0:02:59.7]}
4. e5 {[%clk 0:02:54.3]} 4... Nfd7 {[%clk 0:02:59.9]} 5. d4 {[%clk 0:02:54.2]}
5... c5 {[%clk 0:03:00.5]} 6. Bg5 {[%clk 0:02:53.9]} 6... Qb6 {[%clk 0:03:00.6]}
7. dxc5 {[%clk 0:02:53.8]} 7... Bxc5 {[%clk 0:02:57.2]} 8. Qd2 {[%clk
0:02:46.6]} 8... Nc6 {[%clk 0:02:07.4]} 9. Bb5 {[%clk 0:02:43.8]} 9... O-O
{[%clk 0:01:49.2]} 10. Bf4 {[%clk 0:02:34.8]} 10... d4 {[%clk 0:01:36.3]} 11.
Bd3 {[%clk 0:01:25.3]} 11... dxc3 {[%clk 0:01:23.3]} 12. bxc3 {[%clk 0:01:24.6]}
12... Be7 {[%clk 0:00:46.9]} 13. O-O {[%clk 0:01:19.3]} 13... Nc5 {[%clk
0:00:45.7]} 14. Be3 {[%clk 0:01:18.1]} 14... Qc7 {[%clk 0:00:42]} 15. Bxc5
{[%clk 0:01:15.7]} 15... Bxc5 {[%clk 0:00:40.3]} 16. Qe2 {[%clk 0:01:12]} 16...
Rd8 {[%clk 0:00:19.6]} 17. Qe4 {[%clk 0:01:01.2]} 17... g6 {[%clk 0:00:18.5]}
18. Rfe1 {[%clk 0:00:58]} 18... Bf8 {[%clk 0:00:16.4]} 19. Rad1 {[%clk 0:00:54]}
19... Bd7 {[%clk 0:00:14.4]} 20. Ng5 {[%clk 0:00:49]} 20... Bg7 {[%clk
0:00:12.6]} 21. Qh4 {[%clk 0:00:31.1]} 21... h6 {[%clk 0:00:11.5]} 22. Nf3
{[%clk 0:00:21.2]} 22... Nxe5 {[%clk 0:00:11.4]} 23. Nxe5 {[%clk 0:00:15.4]}
23... Bxe5 {[%clk 0:00:12.3]} 24. Qxh6 {[%clk 0:00:14.1]} 24... Bg7 {[%clk
0:00:12.2]} 25. Qg5 {[%clk 0:00:13]} 25... Bc6 {[%clk 0:00:11.2]} 26. h4 {[%clk
0:00:07.5]} 26... Rd5 {[%clk 0:00:11]} 27. Qg4 {[%clk 0:00:06.9]} 27... Rh5
{[%clk 0:00:10.1]} 28. g3 {[%clk 0:00:06.2]} 28... Rd8 {[%clk 0:00:06.9]} 29.
Be2 {[%clk 0:00:06]} 29... Rxd1 {[%clk 0:00:06.5]} 30. Rxd1 {[%clk 0:00:06.9]}
30... Qe7 {[%clk 0:00:06.6]} 31. Qf4 {[%clk 0:00:06.4]} 31... Qf6 {[%clk
0:00:06]} 32. Qxf6 {[%clk 0:00:06.1]} 32... Bxf6 {[%clk 0:00:06]} 33. Bxh5
{[%clk 0:00:07]} 33... gxh5 {[%clk 0:00:06.4]} 34. Rd3 {[%clk 0:00:06.5]} 34...
Bd5 {[%clk 0:00:05.9]} 35. a3 {[%clk 0:00:06]} 35... Kf8 {[%clk 0:00:05.1]} 36.
Re3 {[%clk 0:00:03.9]} 36... Ke7 {[%clk 0:00:04.9]} 37. f4 {[%clk 0:00:03.3]}
37... Kd6 {[%clk 0:00:04.1]} 38. Kf2 {[%clk 0:00:04]} 38... Bd8 {[%clk
0:00:04.2]} 39. Ke2 {[%clk 0:00:04.4]} 39... Bc4+ {[%clk 0:00:04.4]} 40. Kd2
{[%clk 0:00:05.3]} 40... Bb6 {[%clk 0:00:04.4]} 41. Re4 {[%clk 0:00:05.2]} 41...
Bd5 {[%clk 0:00:03.9]} 42. Re2 {[%clk 0:00:04.5]} 42... Bc5 {[%clk 0:00:04]} 43.
a4 {[%clk 0:00:04.1]} 43... Kc6 {[%clk 0:00:04.2]} 44. Kd3 {[%clk 0:00:02.5]}
44... f5 {[%clk 0:00:04]} 45. c4 {[%clk 0:00:02.7]} 45... Be4+ {[%clk
0:00:03.4]} 46. Kc3 {[%clk 0:00:03.6]} 46... Kb6 {[%clk 0:00:03.4]} 47. Rd2
{[%clk 0:00:03]} 47... Ka5 {[%clk 0:00:03]} 48. Rd7 {[%clk 0:00:03.4]} 48...
Kxa4 {[%clk 0:00:03.1]} 49. Rh7 {[%clk 0:00:02.4]} 49... Bb4+ {[%clk 0:00:02.3]}
50. Kd4 {[%clk 0:00:02]} 50... Bf3 {[%clk 0:00:02.1]} 51. Rh6 {[%clk 0:00:01.1]}
1-0